bitfinex/quotes_ETHUSD_20250318
["timestamp","ask_amount","ask_price","bid_price","bid_amount"]
[1742289694915,5.38691003,1908.4,1908.1,10.2743587]
[1742289695113,5.24028,1908.3,1908.1,5.0336987]
[1742289695321,15.12499102,1908.3,1908.1,5.0336987]
[1742289695508,9.88455102,1908.3,1908.1,5.0336987]
[1742289695708,0.14692003,1908.2,1908.1,5.0336987]
[1742289696619,0.14692003,1908.2,1908.1,10.2745087]
[1742289696830,5.24004,1908.4,1908.1,5.0336987]
[1742289697131,5.38730042,1908.3,1908.1,5.0336987]
[1742289697327,0.14704042,1908.3,1908.1,5.0336987]
[1742289697532,0.14704042,1908.3,1908.1,10.2743787]
[1742289697827,10.47971,1908.5,1908.2,0.774]
[1742289698031,4.64427102,1908.6,1908.2,11.25481]
[1742289698228,10.47917,1908.6,1908.2,11.25481]
[1742289698530,5.23954,1908.6,1908.2,6.01432]
[1742289698735,5.23954,1908.6,1908.3,5.24022]
[1742289699100,3.0,1908.7,1908.2,0.774]
[1742289699302,3.0,1908.7,1908.4,5.23973]
[1742289699613,3.0,1908.7,1908.5,0.8014]
[1742289700702,15.12221102,1908.8,1908.5,0.8014]
[1742289700904,10.47794,1908.8,1908.5,0.8014]
[1742289701101,5.23862,1908.9,1908.6,5.23943]
[1742289701308,5.23838,1909.0,1908.7,5.23908]
[1742289701636,5.23838,1909.0,1908.8,0.7935]
[1742289701837,5.23861,1908.9,1908.8,0.7935]
[1742289702032,10.47741,1908.9,1908.7,4.919]
[1742289702225,5.23861,1908.9,1908.7,4.919]
[1742289704938,4.64427102,1908.8,1908.7,4.919]
[1742289705243,5.23932,1908.7,1908.4,5.6816]
[1742289706407,10.47867,1908.7,1908.4,5.6816]
[1742289706740,5.23932,1908.7,1908.4,5.6816]
[1742289707341,5.23932,1908.7,1908.4,10.92157]
[1742289707730,5.23893,1908.8,1908.4,10.92141]
[1742289707934,5.23865,1908.9,1908.5,10.47907]
[1742289708244,5.23865,1908.9,1908.5,5.23946]
[1742289708410,5.23865,1908.9,1908.5,10.47906]
[1742289708609,5.23865,1908.9,1908.5,5.23946]
[1742289708944,5.23865,1908.9,1908.5,10.47902]
[1742289709114,9.88292102,1908.9,1908.5,5.23946]
[1742289709321,5.23865,1908.9,1908.5,10.47903]
[1742289709519,5.23865,1908.9,1908.5,5.23946]
[1742289710451,5.23814,1909.1,1908.8,0.8193]
[1742289711252,9.88263102,1909.0,1908.7,4.913]
[1742289711541,15.12120102,1909.0,1908.7,4.913]
[1742289711745,9.88263102,1909.0,1908.7,4.913]
[1742289712350,5.23862,1908.9,1908.7,4.913]
[1742289712528,5.23836,1909.0,1908.7,4.913]
[1742289712728,5.23836,1909.0,1908.7,10.15215]
[1742289712934,0.14783143,1908.9,1908.7,4.913]
[1742289713756,5.38645143,1908.9,1908.7,4.913]
[1742289713952,5.40327102,1908.8,1908.6,4.91]
[1742289714254,0.14786581,1908.7,1908.6,4.91]
[1742289720860,5.38702581,1908.7,1908.6,4.91]
[1742289721360,5.38702581,1908.7,1908.4,11.069]
[1742289721361,5.23971,1908.5,1908.4,11.069]
[1742289721525,5.23971,1908.5,1908.4,6.16]
[1742289721732,5.38758438,1908.5,1908.4,6.16]
[1742289723160,5.38758438,1908.5,1908.3,4.909]
[1742289723161,5.24052,1908.3,1908.1,0.1136987]
[1742289723470,5.38806192,1908.2,1908.1,0.1136987]
[1742289723974,10.85123294,1908.2,1908.1,0.1136987]
[1742289726845,10.03233294,1908.2,1908.1,0.1136987]
[1742289727951,5.24109,1908.0,1907.8,4.911]
[1742289728332,0.14729832,1907.9,1907.8,4.911]
[1742289728764,10.48183,1908.1,1907.8,4.911]
[1742289728970,0.14729832,1907.9,1907.8,10.15263]
[1742289729264,0.14729832,1907.9,1907.8,4.911]
[1742289729465,5.24083,1908.1,1907.8,4.911]
[1742289729666,0.14729832,1907.9,1907.8,4.911]
[1742289729862,5.24083,1908.1,1907.8,4.911]
[1742289730066,0.14729832,1907.9,1907.8,4.911]
[1742289730361,10.48181,1908.1,1907.8,4.911]
[1742289730543,0.14729832,1907.9,1907.8,4.911]
[1742289730743,4.64427102,1908.2,1907.8,4.911]
[1742289730744,5.24054,1908.2,1907.9,0.8168]
[1742289731059,10.65847102,1908.3,1908.0,5.24084]
[1742289731060,3.0,1908.3,1908.0,5.24084]
[1742289731254,8.24029,1908.3,1908.0,5.24084]
[1742289731451,5.24029,1908.3,1908.0,5.24084]
[1742289731635,5.24001,1908.4,1908.1,4.918]
[1742289731838,10.48017,1908.4,1908.1,4.918]
[1742289732268,9.88456102,1908.3,1908.1,4.918]
[1742289732568,5.24054,1908.2,1908.1,4.918]
[1742289732953,15.12448102,1908.4,1908.1,4.918]
[1742289733157,10.48021,1908.4,1908.1,4.918]
[1742289733354,10.47968,1908.5,1908.2,0.7749]
[1742289733667,5.23983,1908.5,1908.2,6.01537]
[1742289734046,10.47914,1908.6,1908.2,6.01531]
[1742289734265,5.23949,1908.6,1908.2,11.25576]
[1742289734441,8.23918,1908.7,1908.3,5.24003]
[1742289734646,5.23917,1908.7,1908.5,0.7933]
[1742289735362,5.46687102,1908.9,1908.5,0.7933]
[1742289735663,15.12196102,1908.9,1908.5,6.03292]
[1742289735829,5.23884,1908.9,1908.5,11.27247]
[1742289736052,5.23837,1909.0,1908.7,5.23907]
[1742289736347,5.23837,1909.0,1908.7,10.16407]
[1742289736757,9.88238102,1909.1,1908.7,15.40305]
[1742289737282,5.23783,1909.2,1908.9,5.23857]
[1742289737484,10.4758,1909.2,1908.8,6.07076]
[1742289737636,10.4758,1909.2,1908.8,11.30949]
[1742289738355,5.23783,1909.2,1908.8,11.30949]
[1742289738552,0.7984,1909.7,1909.0,5.45197102]
[1742289738754,5.23704,1909.5,1909.2,5.23779]
[1742289739168,5.2374,1909.4,1909.1,4.929]
[1742289739534,5.2374,1909.4,1909.1,10.16705]
[1742289739736,5.237,1909.5,1909.1,15.40475]
[1742289739963,5.23674,1909.6,1909.3,5.23751]
[1742289740275,5.23674,1909.6,1909.3,6.05981]
[1742289740689,10.47364,1909.6,1909.3,0.8223]
[1742289740986,5.23753,1909.3,1909.1,4.929]
[1742289741134,9.88206102,1909.2,1908.9,0.7535]
[1742289741337,9.88206102,1909.2,1908.8,5.23885]
[1742289741547,5.23808,1909.1,1908.9,4.936]
[1742289742053,5.23779,1909.2,1908.9,4.936]
[1742289742251,10.47528,1909.3,1908.9,10.17446]
[1742289742462,5.23755,1909.3,1908.9,10.17442]
[1742289742684,10.47524,1909.3,1908.9,10.17442]
[1742289742898,5.38599945,1909.2,1908.9,10.17442]
[1742289743103,0.14820945,1909.2,1908.9,4.936]
[1742289743287,9.88248102,1909.1,1908.9,4.936]
[1742289743458,5.23821,1909.1,1908.9,4.936]
[1742289743660,6.14247945,1909.0,1908.7,6.9021987]
[1742289743860,6.14247945,1909.0,1908.8,4.937]
[1742289744167,5.23868,1908.9,1908.8,4.937]
[1742289744413,5.23868,1908.9,1908.5,0.7911]
[1742289744414,5.23891,1908.8,1908.5,0.7911]
[1742289744701,5.2396,1908.6,1908.3,0.7724]
[1742289744880,5.2398,1908.5,1908.2,10.18153]
[1742289745412,0.14820945,1908.4,1908.2,4.941]
[1742289745557,5.38834945,1908.4,1908.2,4.941]
[1742289745762,5.24026,1908.3,1907.9,12.33566251]
[1742289745960,5.24026,1908.3,1908.0,4.943]
[1742289746161,5.38834945,1908.4,1908.0,4.943]
[1742289746162,5.24014,1908.4,1908.0,10.18408]
[1742289746408,5.24014,1908.4,1908.0,15.42506]
[1742289746409,0.14820945,1908.2,1908.0,15.42506]
[1742289746581,5.24014,1908.4,1908.1,5.24081]
[1742289746976,10.48031,1908.4,1908.0,10.18398]
[1742289747450,5.24014,1908.4,1908.1,5.2408]
[1742289747654,5.23972,1908.5,1908.1,5.2408]
[1742289747909,5.23972,1908.5,1908.2,5.24044]
[1742289748068,5.23972,1908.5,1908.2,6.00334]
[1742289748586,5.23946,1908.6,1908.2,6.00334]
[1742289748587,5.23946,1908.6,1908.3,5.24026]
[1742289748788,3.0,1908.6,1908.3,5.24015]
[1742289748956,5.23889,1908.8,1908.4,10.18183]
[1742289748957,5.23898,1908.8,1908.4,10.18183]
[1742289749153,5.23931,1908.7,1908.4,4.942]
[1742289749358,10.47865,1908.7,1908.4,4.942]
[1742289749575,5.23944,1908.6,1908.4,4.942]
[1742289749795,10.47904,1908.6,1908.4,4.942]
[1742289750102,6.14768453,1908.6,1908.4,4.942]
[1742289750329,5.23944,1908.6,1908.4,4.942]
[1742289750462,10.47905,1908.6,1908.2,6.00326]
[1742289750661,5.23944,1908.6,1908.3,4.944]
[1742289751062,5.23944,1908.6,1908.3,10.18426]
[1742289754819,0.7515,1908.9,1908.4,5.23976]
[1742289754820,8.23891,1908.8,1908.4,5.23976]
[1742289755106,8.23891,1908.8,1908.3,6.562751]
[1742289755107,5.23851,1909.0,1908.6,5.23934]
[1742289755273,5.23851,1909.0,1908.7,10.18505]
[1742289756391,5.23811,1909.1,1908.8,6.04876]
[1742289756592,5.2378,1909.2,1908.9,5.23847]
[1742289757119,5.23754,1909.3,1908.9,5.23847]
[1742289757419,3.0,1909.3,1909.0,5.23822]
[1742289757973,0.14777984,1909.2,1908.9,10.47701]
[1742289758173,0.14777984,1909.2,1908.9,5.23845]
[1742289759314,0.14777984,1909.2,1908.9,5.23844]
[1742289759524,0.14777984,1909.2,1909.1,5.23807]
[1742289759679,5.23702,1909.5,1909.1,17.268378]
[1742289759881,0.14777984,1909.2,1909.1,16.22064]
[1742289760222,10.47416,1909.5,1909.1,10.98257]
[1742289760398,4.64427102,1909.6,1909.1,4.944]
[1742289760399,0.14777984,1909.2,1909.1,4.944]
[1742289760600,10.47544,1909.3,1909.1,4.944]
[1742289760777,0.14777984,1909.2,1909.1,4.944]
[1742289763080,10.47468,1909.4,1909.1,4.944]
[1742289763398,0.14777984,1909.2,1909.1,4.944]
[1742289763572,10.47469,1909.4,1909.1,4.944]
[1742289763777,0.14777984,1909.2,1909.1,4.944]
[1742289763973,10.47529,1909.3,1909.1,4.944]
[1742289764199,0.14777984,1909.2,1909.1,4.944]
[1742289764848,5.38556984,1909.2,1909.1,4.944]
[1742289765065,5.38556984,1909.2,1908.9,12.1710287]
[1742289765066,5.23834,1909.0,1908.9,6.1486987]
[1742289765205,5.23889,1908.8,1908.7,4.94]
[1742289765755,5.38666984,1908.8,1908.4,11.28211]
[1742289765955,5.38666984,1908.8,1908.5,10.1807]
[1742289767651,0.14777984,1908.8,1908.5,10.23309201]
[1742289767982,5.23812,1909.1,1908.8,5.23878]
[1742289768118,5.23812,1909.1,1908.9,4.943]
[1742289770552,5.23753,1909.3,1909.0,6.06947]
[1742289771240,9.88180102,1909.3,1909.0,6.06947]
[1742289771408,15.11948102,1909.3,1909.0,6.06947]
[1742289771803,15.11948102,1909.3,1909.0,0.8312]
[1742289772002,15.11948102,1909.3,1908.9,10.18153]
[1742289772206,9.88215102,1909.2,1908.9,10.18153]
[1742289772437,15.12011102,1909.2,1908.9,10.18153]
[1742289772745,9.88215102,1909.2,1908.9,10.18153]
[1742289772921,0.14497365,1909.1,1908.9,10.18153]
[1742289773311,0.14497365,1909.1,1908.9,4.941]
[1742289774158,0.14497365,1909.1,1908.8,0.791]
[1742289774159,5.23837,1909.0,1908.8,0.791]
[1742289774339,5.23871,1908.9,1908.8,4.941]
[1742289774524,0.14497365,1908.9,1908.8,4.941]
[1742289774961,0.14497365,1908.9,1908.6,10.47849]
[1742289775260,0.14497365,1908.9,1908.7,4.8895871]
[1742289775461,0.14497365,1908.9,1908.8,6.07089]
[1742289775837,5.23807,1909.1,1908.8,6.07089]
[1742289776040,0.14497365,1908.9,1908.8,6.07089]
[1742289776369,10.68893102,1909.3,1908.9,5.23853]
[1742289776575,5.23787,1909.2,1908.9,5.23853]
[1742289778283,9.88183102,1909.3,1908.9,5.23861]
[1742289778589,5.23756,1909.3,1909.0,5.23823]
[1742289778892,5.23726,1909.4,1909.1,4.941]
[1742289779046,8.23701,1909.5,1909.2,6.04932]
[1742289779788,12.88128102,1909.5,1909.2,6.04932]
[1742289779942,18.11841102,1909.5,1909.2,6.04932]
[1742289780142,12.88128102,1909.5,1909.2,0.8117]
[1742289780374,8.23701,1909.5,1909.2,6.04939]
[1742289780758,5.23733,1909.4,1909.2,0.8117]
[1742289780984,12.88128102,1909.5,1909.2,0.8117]
[1742289781187,18.11840102,1909.5,1909.2,0.8117]
[1742289781339,5.23734,1909.4,1909.1,4.941]
[1742289781689,5.23753,1909.3,1909.1,4.941]
[1742289781872,10.4752,1909.3,1909.1,4.941]
[1742289782692,5.23753,1909.3,1909.1,4.941]
[1742289782876,5.23702,1909.5,1909.1,10.17897]
[1742289783069,5.23702,1909.5,1909.1,10.17883]
[1742289783259,5.42507102,1909.6,1909.1,4.941]
[1742289783444,5.23743,1909.4,1909.1,4.941]
[1742289784079,5.23743,1909.4,1909.1,10.17906]
[1742289784276,10.47483,1909.4,1909.1,10.17906]
[1742289784647,5.2374,1909.4,1909.1,10.17906]
[1742289785149,10.47485,1909.4,1909.1,4.941]
[1742289785976,5.23753,1909.3,1909.1,4.941]
[1742289786164,9.88167102,1909.4,1908.9,10.18056]
[1742289786165,5.23797,1909.2,1908.9,10.18056]
[1742289786568,5.23797,1909.2,1908.9,4.942]
[1742289786804,0.7906,1909.3,1908.9,4.942]
[1742289786805,5.23834,1909.0,1908.9,4.942]
[1742289787010,9.88261102,1909.0,1908.8,4.942]
[1742289787173,10.68678102,1908.9,1908.6,17.325]
[1742289787371,5.23899,1908.8,1908.7,4.942]
[1742289787759,5.38430801,1908.8,1908.7,4.942]
[1742289787954,0.14531801,1908.8,1908.7,4.942]
[1742289788162,6.04251,1908.9,1908.7,4.942]
[1742289788359,0.14531801,1908.8,1908.7,4.942]
[1742289788612,5.2384,1909.0,1908.7,4.942]
[1742289788613,5.2384,1909.0,1908.7,10.93616]
[1742289788762,0.14531801,1908.8,1908.7,10.93616]
[1742289788962,5.2384,1909.0,1908.7,10.93616]
[1742289789309,0.14531801,1908.9,1908.7,10.93616]
[1742289789972,0.14531801,1908.9,1908.8,5.23889]
[1742289790177,5.23783,1909.2,1908.8,5.23889]
[1742289790379,0.14503387,1909.1,1908.8,10.47763]
[1742289790582,0.14503387,1909.1,1908.8,5.23865]
[1742289792099,0.14503387,1909.1,1908.9,5.23856]
[1742289792594,0.14503387,1909.1,1908.8,5.23865]
[1742289793695,0.09369577,1909.1,1908.8,5.23865]
[1742289793894,0.09369577,1909.1,1908.7,10.93612]
[1742289793895,5.38310387,1909.1,1908.7,10.93612]
[1742289794197,5.38310387,1909.1,1908.7,16.17508]
[1742289794412,5.38310387,1909.1,1908.8,5.23876]
[1742289794614,5.38310387,1909.1,1908.8,10.47752]
[1742289794915,0.14503387,1909.1,1909.0,5.23834]
[1742289795407,5.23728,1909.4,1909.1,5.238]
[1742289796116,15.11897102,1909.4,1909.1,4.941]
[1742289796713,9.88155102,1909.4,1909.1,10.17906]
[1742289796883,10.66126102,1909.5,1909.1,15.41692]
[1742289797072,10.66126102,1909.5,1909.2,5.23776]
[1742289798597,9.88126102,1909.5,1909.2,5.23776]
[1742289798779,13.63450102,1909.6,1909.2,5.23753]
[1742289798979,3.7535,1909.6,1909.2,6.05469]
[1742289799176,5.39777102,1909.6,1909.2,6.05469]
[1742289799880,10.63462102,1909.6,1909.3,5.23743]
[1742289801103,15.87149102,1909.6,1909.2,11.29238]
[1742289801265,4.64427102,1909.5,1909.2,6.05459]
[1742289801470,10.02452032,1909.5,1909.2,6.05459]
[1742289801703,4.78754032,1909.5,1909.2,0.8169]
[1742289802003,4.78754032,1909.5,1909.1,4.941]
[1742289802004,15.11907102,1909.4,1909.1,4.941]
[1742289802371,0.1432693,1909.3,1909.1,4.941]
[1742289802598,10.47532,1909.3,1909.1,4.932]
[1742289802801,10.02552032,1909.2,1909.0,4.933]
[1742289803305,5.23807,1909.1,1909.0,4.933]
[1742289803809,5.23834,1909.0,1908.9,0.62839297]
[1742289803969,10.71501102,1909.0,1908.9,0.62839297]
[1742289804174,10.85828032,1909.0,1908.9,0.62839297]
[1742289805505,5.23861,1908.9,1908.8,0.00271507]
[1742289805721,10.85828032,1909.0,1908.8,0.00271507]
[1742289805910,9.88261102,1909.0,1908.8,0.00271507]
[1742289806111,0.1432693,1908.9,1908.8,0.00271507]
[1742289807791,15.12062102,1909.1,1908.8,0.00271507]
[1742289808023,0.14316594,1909.0,1908.8,0.00271507]
[1742289808224,5.38152594,1909.0,1908.8,0.00271507]
[1742289809122,10.02579696,1909.0,1908.8,0.00271507]
[1742289809288,9.88288102,1908.9,1908.8,0.00271507]
[1742289809493,5.23861,1908.9,1908.8,0.00271507]
[1742289809693,9.88288102,1908.9,1908.8,0.00271507]
[1742289809913,10.02604696,1908.9,1908.8,0.00271507]
[1742289811114,5.38177594,1908.9,1908.8,0.00271507]
[1742289811927,5.38177594,1908.9,1908.6,4.84733527]
[1742289812829,10.62055594,1908.9,1908.6,4.84733527]
[1742289813124,5.23903,1908.8,1908.5,5.23951]
[1742289813430,5.23903,1908.8,1908.6,4.928]
[1742289813618,0.14316594,1908.7,1908.6,4.928]
[1742289814494,15.26611696,1908.7,1908.4,1.43316618]
[1742289814698,10.02673696,1908.7,1908.4,6.36016618]
[1742289815040,10.02673696,1908.7,1908.4,6.36116618]
[1742289815240,15.26608696,1908.7,1908.4,6.36116618]
[1742289815439,5.23945,1908.6,1908.4,5.7328]
[1742289815628,5.23945,1908.6,1908.4,4.928]
[1742289815826,0.14282152,1908.5,1908.4,4.928]
[1742289817297,0.14282152,1908.5,1908.2,6.66659803]
[1742289817503,5.24013,1908.4,1908.2,6.35408803]
[1742289817723,5.38257152,1908.5,1908.2,6.35408803]
[1742289818044,0.14282152,1908.4,1908.2,6.35408803]
[1742289818199,5.38286152,1908.4,1908.1,5.24064]
[1742289818405,5.38286152,1908.4,1908.2,4.929]
[1742289819352,0.14282152,1908.4,1908.2,4.929]
[1742289820204,10.02711254,1908.4,1908.2,4.929]
[1742289820404,15.26729254,1908.4,1908.2,4.929]
[1742289820661,5.24059,1908.2,1907.9,5.24133]
[1742289820908,9.88517102,1908.1,1907.8,5.7371]
[1742289821115,10.62403826,1908.1,1907.8,5.7371]
[1742289821421,10.62403826,1908.1,1907.8,4.929]
[1742289821736,15.26830928,1908.1,1907.8,4.929]
[1742289821934,0.14215826,1908.1,1908.0,6.06629]
[1742289822433,5.23973,1908.5,1908.1,5.24077]
[1742289822638,0.14196869,1908.4,1908.1,5.24063]
[1742289822833,0.14196869,1908.4,1908.1,10.48132]
[1742289823005,0.14196869,1908.4,1908.1,5.24063]
[1742289823207,0.14196869,1908.4,1908.2,5.2405]
[1742289823447,0.14196869,1908.4,1908.1,5.24063]
[1742289823751,0.14196869,1908.4,1908.1,10.48132]
[1742289823909,0.14196869,1908.4,1908.1,5.24063]
[1742289824522,0.14196869,1908.4,1908.2,5.24053]
[1742289824735,0.14196869,1908.4,1908.2,10.17953]
[1742289825464,0.14196869,1908.4,1908.3,5.24026]
[1742289825673,0.14196869,1908.4,1908.3,6.07106]
[1742289825964,13.47866,1908.7,1908.3,6.07106]
[1742289826135,0.14208072,1908.4,1908.3,6.07106]
[1742289826336,8.2393,1908.7,1908.3,11.31123]
[1742289826540,0.14208072,1908.4,1908.3,7.8501946]
[1742289826741,6.00722,1908.8,1908.4,10.47972]
[1742289827286,10.65149102,1908.8,1908.4,5.23986]
[1742289827587,4.64427102,1908.7,1908.4,5.23986]
[1742289827887,9.88345102,1908.7,1908.4,5.23986]
[1742289829986,9.88345102,1908.7,1908.3,6.07104]
[1742289830186,9.88345102,1908.7,1908.3,7.6476944]
[1742289830689,4.64427102,1908.7,1908.3,7.6474844]
[1742289830888,4.64427102,1908.7,1908.4,5.23986]
[1742289831085,4.64427102,1908.7,1908.4,10.47972]
[1742289831240,9.88292102,1908.9,1908.5,5.23964]
[1742289831446,9.88292102,1908.9,1908.6,5.23943]
[1742289832369,4.64427102,1908.9,1908.6,5.23943]
[1742289832571,4.64427102,1908.9,1908.6,10.17443]
[1742289832776,0.14220133,1908.8,1908.7,5.23897]
[1742289833297,0.14220133,1908.8,1908.7,11.28039]
[1742289833502,4.64427102,1909.0,1908.7,11.28039]
[1742289833797,3.0,1909.2,1908.9,5.23844]
[1742289833981,3.0,1909.2,1909.0,5.2383]
[1742289834158,3.0,1909.2,1909.0,10.1773]
[1742289834490,4.64427102,1909.3,1909.0,10.1773]
[1742289834662,3.0,1909.5,1909.2,5.23768]
[1742289834867,7.64427102,1909.5,1909.2,5.23768]
[1742289835102,4.64427102,1909.5,1909.2,5.23766]
[1742289835305,7.64427102,1909.5,1909.2,10.47532]
[1742289835866,12.88128102,1909.5,1909.2,5.23766]
[1742289836232,7.64427102,1909.5,1909.2,5.23766]
[1742289836511,7.64427102,1909.5,1909.2,10.47534]
[1742289836911,3.0,1909.5,1909.2,10.47534]
[1742289837065,7.64427102,1909.5,1909.2,10.47534]
[1742289837566,7.64427102,1909.5,1909.2,5.23766]
[1742289837808,7.64427102,1909.5,1909.2,5.23764]
[1742289838010,7.64427102,1909.5,1909.2,10.47532]
[1742289838210,7.64427102,1909.5,1909.2,5.23764]
[1742289838505,4.64427102,1909.4,1909.1,6.06862]
[1742289838716,4.64427102,1909.4,1909.1,11.30653]
[1742289839019,4.64427102,1909.4,1909.1,11.30643]
[1742289839177,4.64427102,1909.3,1909.0,12.518654]
[1742289839365,4.64427102,1909.3,1909.0,10.17728]
[1742289839565,4.64427102,1909.2,1909.0,4.939]
[1742289839762,4.64427102,1909.1,1908.9,4.97231854]
[1742289841004,10.68053102,1909.2,1908.9,10.21091854]
[1742289841782,5.44267102,1909.2,1908.9,10.21072854]
[1742289842505,10.68060102,1909.2,1908.9,10.21072854]
[1742289842908,0.7984,1909.2,1908.9,10.21072854]
[1742289843278,6.03627,1909.2,1908.9,10.21072854]
[1742289843610,5.23807,1909.1,1908.9,0.03431854]
[1742289843816,5.23807,1909.1,1908.9,4.96831854]
[1742289844017,15.91851102,1909.2,1908.9,4.96831854]
[1742289845016,10.68054102,1909.2,1908.9,4.96831854]
[1742289845414,15.91852102,1909.2,1908.9,4.96831854]
[1742289846331,5.23787,1909.2,1908.9,10.20678854]
[1742289846531,15.11952102,1909.3,1908.9,10.20673854]
[1742289847230,5.2378,1909.2,1908.9,10.20673854]
[1742289847528,15.93532102,1909.4,1909.0,10.47644]
[1742289847701,10.69797102,1909.4,1909.1,5.23793]
[1742289847894,0.14297654,1909.3,1909.1,11.241]
[1742289848230,3.0,1909.4,1909.1,6.00307]
[1742289848433,0.14297654,1909.3,1909.1,6.00307]
[1742289848598,3.0,1909.5,1909.2,5.23778]
[1742289848799,0.14297654,1909.4,1909.2,5.23766]
[1742289849000,0.14297654,1909.4,1909.3,5.23752]
[1742289849411,4.78724756,1909.4,1909.1,6.00324]
[1742289849710,4.78724756,1909.4,1909.1,11.24112]
[1742289849915,4.78724756,1909.4,1909.1,6.00308]
[1742289850118,10.02449756,1909.4,1909.1,6.00308]
[1742289850320,9.88180102,1909.3,1909.0,5.23831]
[1742289850534,9.88208102,1909.2,1908.9,11.03662854]
[1742289850852,0.14297654,1909.1,1908.9,0.03431854]
[1742289851062,0.14297654,1909.1,1909.0,4.935]
[1742289851425,0.14297654,1909.1,1909.0,10.17334]
[1742289851622,5.23726,1909.4,1909.0,10.17334]
[1742289851623,9.88153102,1909.4,1909.0,10.17322]
[1742289851827,0.1430282,1909.3,1909.1,6.04796]
[1742289852025,15.11898102,1909.4,1909.0,16.22133]
[1742289852258,0.1430282,1909.3,1909.0,10.98311]
[1742289852562,15.11898102,1909.4,1909.0,10.98311]
[1742289852765,0.1430282,1909.2,1909.0,10.98311]
[1742289852924,15.11898102,1909.4,1909.0,16.22136]
[1742289853122,0.1430282,1909.1,1909.0,10.98311]
[1742289853322,15.11898102,1909.4,1909.0,10.98311]
[1742289853548,3.7742,1909.5,1909.0,10.98311]
[1742289853549,0.1430282,1909.1,1909.0,4.935]
[1742289854600,0.1430282,1909.1,1908.9,4.96831854]
[1742289856224,0.1430282,1909.1,1908.9,10.51144854]
[1742289856527,0.1430282,1909.1,1908.9,5.27283854]
[1742289857064,0.14308848,1909.0,1908.9,5.27283854]
[1742289857354,4.64427102,1909.2,1908.9,5.27283854]
[1742289857553,0.14308848,1909.0,1908.9,5.27283854]
[1742289857744,4.64427102,1909.2,1908.9,10.51136854]
[1742289857945,4.64427102,1909.2,1909.0,5.2383]
[1742289858773,9.88155102,1909.4,1909.0,5.23816]
[1742289858960,9.88155102,1909.4,1909.1,5.2379]
[1742289859277,18.91176102,1909.5,1909.1,10.47584]
[1742289859633,4.64427102,1909.4,1909.1,5.2379]
[1742289860235,4.64427102,1909.3,1909.1,5.2379]
[1742289860732,4.64427102,1909.3,1909.0,6.01179]
[1742289861055,4.64427102,1909.3,1909.0,11.25]
[1742289861829,9.03041,1909.5,1909.2,5.23768]
[1742289862163,8.43767102,1909.5,1909.2,5.23768]
[1742289862546,7.64427102,1909.5,1909.2,5.23764]
[1742289862865,0.14308848,1909.4,1909.2,5.23764]
[1742289863737,4.7873595,1909.4,1909.1,5.23796]
[1742289864139,4.7873595,1909.4,1909.2,4.932]
[1742289864653,0.14308848,1909.4,1909.3,5.23752]
[1742289864853,0.14308848,1909.4,1909.3,6.06972]
[1742289865058,7.64427102,1909.6,1909.3,6.06972]
[1742289865362,0.14314015,1909.5,1909.3,6.06972]
[1742289866045,4.78741117,1909.5,1909.3,5.23752]
[1742289866446,4.78741117,1909.5,1909.2,10.94668]
[1742289866765,10.02440117,1909.5,1909.2,10.0883032]
[1742289867164,4.78741117,1909.5,1909.3,5.23748]
[1742289867369,0.14314015,1909.5,1909.3,5.23748]
[1742289869348,4.78741117,1909.5,1909.3,5.23748]
[1742289870387,4.78741117,1909.5,1909.2,10.0883532]
[1742289870567,4.78741117,1909.5,1909.2,15.3259832]
[1742289870763,0.14314015,1909.5,1909.3,5.2375]
[1742289871189,0.14314015,1909.5,1909.3,5.23743]
[1742289872080,0.14314015,1909.5,1909.3,5.23737]
[1742289873085,0.14314015,1909.5,1909.3,5.23736]
[1742289874373,4.64427102,1909.4,1909.2,4.8506232]
[1742289874743,0.14323486,1909.3,1909.2,4.8506232]
[1742289874962,0.14323486,1909.3,1909.2,10.0884132]
[1742289875194,4.64427102,1909.4,1909.2,10.0884132]
[1742289875479,0.14323486,1909.3,1909.2,4.8506232]
[1742289875645,4.64427102,1909.4,1909.2,4.8506232]
[1742289875847,0.14323486,1909.3,1909.2,4.8506232]
[1742289876046,9.88157102,1909.4,1909.2,4.8506232]
[1742289876250,0.14323486,1909.3,1909.1,5.23798]
[1742289876482,0.14323486,1909.3,1909.1,10.15598]
[1742289876784,9.88157102,1909.4,1909.1,10.15598]
[1742289876988,0.14323486,1909.2,1909.1,10.15598]
[1742289877157,9.88157102,1909.4,1909.1,15.39389]
[1742289877364,0.14323486,1909.2,1909.1,15.39389]
[1742289877861,9.88157102,1909.4,1909.1,10.15593]
[1742289878077,0.14333818,1909.3,1909.1,10.15593]
[1742289878266,9.88157102,1909.4,1909.1,10.15593]
[1742289878464,0.14333818,1909.3,1909.2,5.23772]
[1742289878666,4.64427102,1909.4,1909.2,5.23772]
[1742289879002,0.14333818,1909.3,1909.2,5.23772]
[1742289879356,4.64427102,1909.4,1909.2,5.23772]
[1742289879596,0.14333818,1909.3,1909.2,5.23772]
[1742289879895,4.64427102,1909.4,1909.2,5.23772]
[1742289880057,0.14333818,1909.3,1909.2,5.23772]
[1742289880259,11.29412,1909.5,1909.2,5.23772]
[1742289880486,0.14333818,1909.4,1909.2,5.23772]
[1742289881291,0.14333818,1909.4,1909.1,15.3941]
[1742289881786,0.14333818,1909.4,1909.2,5.23778]
[1742289885408,0.14333818,1909.4,1909.2,5.23767]
[1742289885695,0.14333818,1909.4,1909.3,5.23752]
[1742289886256,9.88098102,1909.6,1909.3,5.23752]
[1742289886456,0.14150467,1909.5,1909.3,5.23752]
[1742289886657,0.14150467,1909.5,1909.2,11.26819]
[1742289887358,5.37853467,1909.5,1909.2,6.03052]
[1742289887682,5.37853467,1909.5,1909.2,11.26817]
[1742289887889,0.14150467,1909.5,1909.2,11.26817]
[1742289888586,0.14150467,1909.5,1909.2,11.26818]